bitfinex/quotes_BTCUSD_20251031
["timestamp","ask_amount","ask_price","bid_price","bid_amount"]
[1761871804021,0.04255908,109010.0,109000.0,4.66027]
[1761871804396,0.04255908,109010.0,109000.0,4.33926998]
[1761871804749,0.04255908,109010.0,109000.0,4.56245]
[1761871804962,0.04255908,109010.0,109000.0,3.75456751]
[1761871805165,0.04255908,109010.0,109000.0,4.45319404]
[1761871805391,0.04255908,109010.0,109000.0,4.46119402]
[1761871805595,0.04255908,109010.0,109000.0,4.5538907]
[1761871805804,0.04255908,109010.0,109000.0,4.5548907]
[1761871806206,0.04255908,109010.0,109000.0,4.5458907]
[1761871806357,0.04255908,109010.0,109000.0,4.5538907]
[1761871806775,0.04255908,109010.0,109000.0,4.6507107]
[1761871807243,0.04255908,109010.0,109000.0,4.6397107]
[1761871807448,0.04255908,109010.0,109000.0,4.6467107]
[1761871808036,0.04255908,109010.0,109000.0,4.6580907]
[1761871808223,0.04255908,109010.0,109000.0,4.6397107]
[1761871808448,0.04255908,109010.0,109000.0,4.6507107]
[1761871810717,0.0002,109020.0,109000.0,4.56901402]
[1761871810927,0.00082655,109040.0,109030.0,3.54443573]
[1761871811124,0.00082655,109040.0,109030.0,3.67690474]
[1761871811332,0.00082655,109040.0,109030.0,3.71955474]
[1761871812073,0.00087473,109040.0,109030.0,3.71955474]
[1761871812285,0.00087473,109040.0,109030.0,3.53611899]
[1761871812505,0.00177196,109040.0,109030.0,0.60052438]
[1761871813356,0.00177196,109040.0,109030.0,0.60152438]
[1761871813890,0.00177196,109040.0,109030.0,0.60652438]
[1761871814107,0.00177196,109040.0,109030.0,3.79496013]
[1761871814332,0.00177196,109040.0,109030.0,3.72955474]
[1761871816268,0.00177196,109040.0,109030.0,3.54611899]
[1761871816465,0.00177196,109040.0,109030.0,3.72855474]
[1761871816645,0.00177196,109040.0,109030.0,3.54511899]
[1761871816852,0.00177196,109040.0,109030.0,3.61053304]
[1761871817025,0.00177196,109040.0,109030.0,3.83115107]
[1761871817275,0.00177196,109040.0,109030.0,3.82115107]
[1761871817715,0.00177196,109040.0,109030.0,3.64571532]
[1761871817923,0.00177196,109040.0,109030.0,0.28471534]
[1761871818138,0.00177196,109040.0,109030.0,0.29471533]
[1761871818588,0.00177196,109040.0,109030.0,0.30571532]
[1761871819282,0.00177196,109040.0,109030.0,0.30471532]
[1761871819496,0.00177196,109040.0,109030.0,0.30571532]
[1761871819743,0.00177196,109040.0,109030.0,0.48915107]
[1761871820175,0.00177196,109040.0,109030.0,0.42273702]
[1761871820391,0.00177196,109040.0,109030.0,0.42373702]
[1761871821046,0.00177196,109040.0,109030.0,0.50547033]
[1761871822138,0.00177196,109040.0,109030.0,3.50547033]
[1761871822609,0.00177196,109040.0,109030.0,4.54309686]
[1761871822821,0.00177196,109040.0,109030.0,4.54409686]
[1761871823047,0.00177196,109040.0,109030.0,3.84547033]
[1761871823540,0.00177196,109040.0,109030.0,4.2376444]
[1761871823773,0.00177196,109040.0,109030.0,4.2426444]
[1761871823999,0.00177196,109040.0,109030.0,4.2476444]
[1761871825106,0.00177196,109040.0,109030.0,3.84747033]
[1761871825321,0.00177196,109040.0,109030.0,4.2476444]
[1761871826198,0.00177196,109040.0,109030.0,4.3933444]
[1761871826636,0.00177196,109040.0,109030.0,4.2476444]
[1761871829324,0.0037,109050.0,109040.0,3.98077525]
[1761871829543,0.0037,109050.0,109040.0,4.21445363]
[1761871829977,0.00392425,109050.0,109040.0,4.21445363]
[1761871831331,0.00392425,109050.0,109040.0,4.62462769]
[1761871831548,0.00392425,109050.0,109040.0,4.54388832]
[1761871831779,0.00392425,109050.0,109040.0,4.54288832]
[1761871832015,0.04250788,109070.0,109060.0,0.98074162]
[1761871832238,0.04250788,109070.0,109060.0,3.61101326]
[1761871832458,0.04250788,109070.0,109060.0,4.23722262]
[1761871832688,0.04250788,109070.0,109060.0,4.15554063]
[1761871832930,0.04250788,109070.0,109060.0,4.15454063]
[1761871833161,0.04250788,109070.0,109060.0,4.23722262]
[1761871833631,0.04250788,109070.0,109060.0,4.24422262]
[1761871834068,0.04250788,109070.0,109060.0,4.25022262]
[1761871836302,0.04250788,109070.0,109060.0,4.16854063]
[1761871836711,0.04250788,109070.0,109060.0,4.31424063]
[1761871837124,0.04250788,109070.0,109060.0,4.39592262]
[1761871837465,0.04250788,109070.0,109060.0,4.46471822]
[1761871837668,0.04295629,109070.0,109060.0,4.46471822]
[1761871838434,0.04295629,109070.0,109060.0,4.38303623]
[1761871839424,0.04295629,109070.0,109060.0,4.04805706]
[1761871839629,0.04295629,109070.0,109060.0,0.6039939]
[1761871839842,0.04295629,109070.0,109060.0,3.78637919]
[1761871840042,0.40037407,109110.0,109080.0,0.02088]
[1761871840246,0.40017407,109090.0,109080.0,0.08538965]
[1761871840456,0.40085599,109110.0,109100.0,0.0519]
[1761871840667,0.40085599,109110.0,109100.0,0.14171901]
[1761871840877,0.40085599,109110.0,109100.0,0.18436901]
[1761871841076,0.40085599,109110.0,109100.0,0.14171901]
[1761871841899,1.24994006,109110.0,109100.0,0.14171901]
[1761871842100,1.34955006,109110.0,109100.0,0.09406901]
[1761871842728,1.24994006,109110.0,109100.0,0.12746901]
[1761871842929,1.14103006,109110.0,109100.0,0.12746901]
[1761871845347,1.14103006,109110.0,109100.0,0.16511901]
[1761871846961,0.74085599,109110.0,109100.0,0.16511901]
[1761871847295,0.74175239,109110.0,109100.0,0.16511901]
[1761871847502,1.14192646,109110.0,109100.0,0.16511901]
[1761871847923,1.14192646,109110.0,109100.0,0.16611901]
[1761871849304,1.25128646,109110.0,109100.0,0.09081901]
[1761871849505,1.34391646,109110.0,109100.0,0.09081901]
[1761871850114,1.55477397,109110.0,109100.0,0.09081901]
[1761871850322,1.55477397,109110.0,109100.0,0.001]
[1761871850674,3.95494804,109110.0,109100.0,0.001]
[1761871850881,3.55477397,109110.0,109100.0,0.001]
[1761871851479,3.37147272,109110.0,109100.0,0.001]
[1761871851686,0.34,109090.0,109080.0,0.03765]
[1761871851885,0.74017407,109090.0,109080.0,0.12746901]
[1761871852182,0.74017407,109090.0,109080.0,0.16511901]
[1761871853018,0.80431407,109090.0,109080.0,0.12746901]
[1761871853232,1.34233814,109090.0,109080.0,0.08981901]
[1761871853800,1.525673,109090.0,109080.0,0.08981901]
[1761871854018,1.53483974,109090.0,109080.0,0.001]
[1761871854219,1.56240142,109090.0,109080.0,0.001]
[1761871855053,1.55323468,109090.0,109080.0,0.001]
[1761871855617,1.36989982,109090.0,109080.0,0.001]
[1761871856406,1.55323468,109090.0,109080.0,0.001]
[1761871857110,1.55368296,109090.0,109080.0,0.001]
[1761871858523,1.56495124,109090.0,109080.0,0.001]
[1761871859615,1.57411798,109090.0,109060.0,0.03260257]
[1761871859828,0.74017407,109070.0,109060.0,0.12242158]
[1761871860232,0.74017407,109070.0,109060.0,0.16007158]
[1761871860436,0.76774013,109070.0,109060.0,0.16007158]
[1761871861127,0.76774013,109070.0,109060.0,0.16107158]
[1761871862260,0.54802471,109070.0,109060.0,0.12846901]
[1761871862484,0.82428341,109070.0,109060.0,0.12846901]
[1761871862924,0.86950341,109070.0,109060.0,0.12846901]
[1761871863423,1.2699438,109070.0,109060.0,0.12846901]
[1761871865137,1.2699438,109070.0,109060.0,0.09081901]
[1761871865375,1.2699438,109070.0,109060.0,0.12846901]
[1761871867046,0.35996934,109070.0,109060.0,0.12846901]
[1761871867247,1.13301774,109070.0,109060.0,0.12846901]
[1761871867894,0.73271051,109070.0,109060.0,0.12846901]
[1761871868047,0.33240328,109070.0,109060.0,0.16611901]
[1761871868249,0.34,109070.0,109060.0,0.18445753]
[1761871869037,0.40053139,109080.0,109060.0,0.18445753]
[1761871869279,0.74101301,109080.0,109070.0,0.16039901]
[1761871869486,0.40101301,109080.0,109070.0,0.16039901]
[1761871871062,0.00070578,109080.0,109070.0,0.17973585]
[1761871871466,0.00070578,109080.0,109070.0,0.16139901]
[1761871872239,0.00070578,109080.0,109070.0,0.21233842]
[1761871872390,0.00070578,109080.0,109070.0,0.24190544]
[1761871872604,0.00070578,109080.0,109070.0,0.19600158]
[1761871872806,0.00070578,109080.0,109070.0,0.19900158]
[1761871873030,0.40101301,109080.0,109070.0,0.19900158]
[1761871874759,0.80132024,109080.0,109070.0,0.19900158]
[1761871874937,0.40101301,109080.0,109070.0,0.19900158]
[1761871876650,0.80132024,109080.0,109070.0,0.19900158]
[1761871877512,1.14132024,109080.0,109070.0,0.19900158]
[1761871877873,1.14132024,109080.0,109070.0,0.16639901]
[1761871878070,1.14132024,109080.0,109070.0,0.16339901]
[1761871878256,1.14132024,109080.0,109070.0,0.16439901]
[1761871878652,1.14132024,109080.0,109070.0,0.16139901]
[1761871878867,1.14132024,109080.0,109070.0,0.16339901]
[1761871879071,1.19974024,109080.0,109070.0,0.12574901]
[1761871879250,1.29064024,109080.0,109070.0,0.12574901]
[1761871879691,1.19974024,109080.0,109070.0,0.12574901]
[1761871880532,1.19974024,109080.0,109070.0,0.12274901]
[1761871882860,1.24041024,109080.0,109070.0,0.12274901]
[1761871883756,1.33131024,109080.0,109070.0,0.08981901]
[1761871883966,1.24041024,109080.0,109070.0,0.11552901]
[1761871885642,0.43979578,109080.0,109070.0,0.11552901]
[1761871885848,1.14132024,109080.0,109070.0,0.14123901]
[1761871886057,0.74101301,109080.0,109070.0,0.14123901]
[1761871888221,0.74101301,109080.0,109070.0,0.14223901]
[1761871888619,0.34070578,109080.0,109070.0,0.14223901]
[1761871888950,0.74101301,109080.0,109070.0,0.14223901]
[1761871889284,0.73601301,109080.0,109070.0,0.14223901]
[1761871889487,0.40030723,109080.0,109070.0,0.14223901]
[1761871890161,0.70992203,109110.0,109070.0,0.14223901]
[1761871890371,2.40030723,109100.0,109090.0,0.02571]
[1761871890580,0.80061446,109100.0,109090.0,0.11552901]
[1761871890760,0.80061446,109100.0,109090.0,0.16694901]
[1761871891535,0.80061446,109100.0,109090.0,0.14123901]
[1761871892525,0.80061446,109100.0,109090.0,0.16694901]
[1761871894489,0.80061446,109100.0,109090.0,0.14123901]
[1761871894889,0.85903446,109100.0,109090.0,0.14123901]
[1761871895091,2.80061446,109100.0,109090.0,0.16694901]
[1761871895299,0.80061446,109100.0,109090.0,0.16694901]
[1761871895921,0.8010627,109100.0,109090.0,0.16694901]
[1761871896133,0.8010627,109100.0,109090.0,0.14123901]
[1761871896338,0.8594827,109100.0,109090.0,0.14123901]
[1761871896841,0.8010627,109100.0,109090.0,0.14123901]
[1761871896994,0.8594827,109100.0,109090.0,0.14123901]
[1761871897335,0.8010627,109100.0,109090.0,0.14123901]
[1761871898063,0.00044824,109100.0,109090.0,0.14123901]
[1761871898208,0.8010627,109100.0,109090.0,0.14123901]
[1761871899591,0.9022327,109100.0,109090.0,0.05142]
[1761871899798,0.9931327,109100.0,109090.0,0.05142]
[1761871900291,0.9022327,109100.0,109090.0,0.05142]
[1761871901331,0.9931327,109100.0,109090.0,0.02571]
[1761871902411,0.8010627,109100.0,109090.0,0.06033]
[1761871904015,0.8010627,109100.0,109090.0,0.15014901]
[1761871905476,0.8986127,109100.0,109090.0,0.13283901]
[1761871905751,0.8442427,109100.0,109090.0,0.13283901]
[1761871906789,0.8986127,109100.0,109090.0,0.13283901]
[1761871907095,0.8010627,109100.0,109090.0,0.13283901]
[1761871907257,0.8010627,109100.0,109090.0,0.15014901]
[1761871908232,0.40075547,109100.0,109090.0,0.15014901]
[1761871908635,0.00044824,109100.0,109090.0,0.55045624]
[1761871909088,0.00044824,109100.0,109090.0,0.15014901]
[1761871909467,0.40075547,109100.0,109090.0,0.15014901]
[1761871910260,0.00044824,109100.0,109090.0,0.15014901]
[1761871910468,0.40075547,109100.0,109090.0,0.15014901]
[1761871910880,0.40075547,109100.0,109090.0,0.15114901]
[1761871912143,0.00044824,109100.0,109090.0,0.15114901]
[1761871912340,0.40075547,109100.0,109090.0,0.15114901]
[1761871914104,0.00044824,109100.0,109090.0,0.15114901]
[1761871914305,0.40075547,109100.0,109090.0,0.15114901]
[1761871914512,0.40075547,109100.0,109090.0,0.16948249]
[1761871914920,0.00044824,109100.0,109090.0,0.15114901]
[1761871915122,0.00044824,109100.0,109090.0,0.16948249]
[1761871915955,0.00044824,109100.0,109090.0,0.15114901]
[1761871916243,0.00044824,109100.0,109090.0,0.16948249]
[1761871916795,0.00044824,109100.0,109090.0,0.15014901]
[1761871916998,0.00044824,109100.0,109090.0,0.17048249]
[1761871917889,0.00044824,109100.0,109090.0,0.17148249]
[1761871919247,0.40075547,109100.0,109090.0,0.17148249]
[1761871919449,0.8010627,109100.0,109090.0,0.15314901]
[1761871920807,0.00044824,109100.0,109090.0,0.15314901]
[1761871921087,0.8010627,109100.0,109090.0,0.15314901]
[1761871921229,0.00044824,109100.0,109090.0,0.15314901]
[1761871921438,8e-05,109140.0,109090.0,0.37027758]
[1761871921653,0.04196886,109150.0,109140.0,0.18325087]
[1761871921654,0.00859532,109150.0,109140.0,0.18325087]
[1761871921845,0.15730324,109200.0,109190.0,0.04263686]
[1761871922227,0.104844,109210.0,109200.0,0.40263685]
[1761871922661,0.104844,109210.0,109200.0,0.68151906]
[1761871922865,0.10532583,109210.0,109200.0,1.4996495]
[1761871923068,0.10532583,109210.0,109200.0,0.79885405]
[1761871923279,0.10532583,109210.0,109200.0,1.54228624]
[1761871923469,0.10532583,109210.0,109200.0,0.60570388]
[1761871923694,0.10532583,109210.0,109200.0,0.78239947]
[1761871923883,0.10532583,109210.0,109200.0,0.71454227]
[1761871924113,0.10532583,109210.0,109200.0,1.42101017]
[1761871924317,0.0036034,109260.0,109250.0,0.34645458]
[1761871924494,0.00374793,109260.0,109250.0,0.09627359]
[1761871925118,0.00374793,109260.0,109250.0,0.11458022]
[1761871925455,0.00374793,109260.0,109250.0,0.10886213]
[1761871925937,0.00374793,109260.0,109250.0,0.11758022]
[1761871926317,0.00374793,109260.0,109250.0,0.4937625]
[1761871926657,0.00374793,109260.0,109250.0,0.47545587]
[1761871927074,0.00374793,109260.0,109250.0,0.47345587]
[1761871927615,0.00374793,109260.0,109250.0,0.47645587]
[1761871927974,0.00732813,109260.0,109250.0,0.47645587]
[1761871928167,0.00732813,109260.0,109250.0,0.47945587]
[1761871928668,0.00732813,109260.0,109250.0,0.48845586]
[1761871928830,0.00732813,109260.0,109250.0,1.18592377]
[1761871929026,0.00732813,109260.0,109250.0,1.37899013]
[1761871929258,0.00732813,109260.0,109250.0,1.19592377]
[1761871929459,0.71772185,109290.0,109250.0,0.49945586]
[1761871929699,4.808e-05,109290.0,109280.0,0.08981901]
[1761871929838,4.808e-05,109290.0,109280.0,0.10812062]
[1761871930039,0.00071869,109290.0,109280.0,0.10812062]
[1761871930238,0.00071869,109290.0,109280.0,0.09627359]
[1761871933149,4e-05,109330.0,109310.0,0.18941963]
[1761871933380,0.5,109400.0,109330.0,3.0]
[1761871933672,2.00014432,109400.0,109390.0,0.00645458]
[1761871933846,2.08328432,109400.0,109390.0,0.00645458]
[1761871934047,2.05176432,109400.0,109390.0,0.00645458]
[1761871934458,2.00014432,109400.0,109390.0,0.00645458]
[1761871934642,2.05176432,109400.0,109390.0,0.00645458]
[1761871934841,2.69661223,109400.0,109390.0,0.00645458]
[1761871935042,2.00014432,109400.0,109390.0,0.09627359]
[1761871935427,0.00014432,109400.0,109390.0,0.09627359]
[1761871936305,2.87386223,109400.0,109390.0,0.09627359]
[1761871936506,2.78960223,109400.0,109390.0,0.09627359]
[1761871936714,2.00014432,109400.0,109390.0,0.09627359]
[1761871936916,2.73550223,109400.0,109390.0,0.09627359]
[1761871937118,0.97241758,109400.0,109390.0,0.09627359]
[1761871937333,0.78960223,109400.0,109390.0,0.09627359]
[1761871937684,0.73550223,109400.0,109390.0,0.09627359]
[1761871938140,0.78960223,109400.0,109390.0,0.09627359]
[1761871938669,0.21278051,109430.0,109400.0,0.03618228]
[1761871938670,0.01008,109430.0,109400.0,0.03618228]
[1761871938867,4e-05,109460.0,109430.0,3.39263685]
[1761871939068,0.0005216,109460.0,109450.0,0.44609493]
[1761871939284,0.0005216,109460.0,109450.0,0.48227721]
[1761871939484,0.0005216,109460.0,109450.0,0.10609493]
[1761871939640,0.00431533,109460.0,109450.0,0.10609493]
[1761871940504,0.00431533,109460.0,109450.0,0.16155039]
[1761871941972,0.00431533,109460.0,109450.0,0.11454677]
[1761871942175,0.00431533,109460.0,109450.0,0.10609493]
[1761871942329,0.00431533,109460.0,109450.0,0.50055039]
[1761871942538,10.089,109500.0,109450.0,0.44609493]
[1761871942736,10.089,109500.0,109490.0,0.09937248]
[1761871942737,10.08914444,109500.0,109490.0,0.09937248]
[1761871942937,10.78561235,109500.0,109490.0,0.10582706]
[1761871943301,10.08914444,109500.0,109490.0,0.10582706]
[1761871943506,10.08414444,109500.0,109490.0,0.10582706]
[1761871943908,10.78061235,109500.0,109490.0,0.09627359]
[1761871944111,10.78061235,109500.0,109490.0,0.10582706]
[1761871944322,10.78061235,109500.0,109490.0,0.09627359]
[1761871944528,10.78061235,109500.0,109490.0,0.10582706]
[1761871944732,10.96326075,109500.0,109490.0,0.10582706]
[1761871944932,10.96326075,109500.0,109490.0,0.09627359]
[1761871945329,10.96326075,109500.0,109490.0,0.10582706]
[1761871945740,12.78061235,109500.0,109490.0,0.09627359]
[1761871945983,10.96326075,109500.0,109490.0,0.10582706]
[1761871947223,13.04752075,109500.0,109490.0,0.09937248]
[1761871947430,13.04752075,109500.0,109490.0,0.01600805]
[1761871947568,0.19181113,109490.0,109460.0,0.01827151]
[1761871947772,0.19181113,109490.0,109470.0,0.08981901]
[1761871947773,0.19181584,109480.0,109470.0,0.08981901]
[1761871947984,0.88828375,109480.0,109470.0,0.08981901]
[1761871948410,0.88828375,109480.0,109470.0,0.07448924]
[1761871948411,3.02664375,109480.0,109470.0,0.07448924]
[1761871948614,3.36664375,109480.0,109470.0,0.07448924]
[1761871948810,2.0,109450.0,109410.0,0.02827985]
[1761871948990,0.69646791,109450.0,109440.0,0.08981901]
[1761871949402,0.23070113,109490.0,109440.0,0.08981901]
[1761871949612,2.0,109470.0,109450.0,0.10809219]
[1761871949815,10.084,109500.0,109460.0,0.42981901]
[1761871949992,0.69646791,109490.0,109480.0,0.08981901]
[1761871951370,0.69646791,109490.0,109450.0,0.01827318]
[1761871951371,0.79859116,109490.0,109450.0,0.01827318]
[1761871951566,0.69646791,109480.0,109460.0,0.08981901]
[1761871952586,0.69646791,109490.0,109460.0,0.08981901]
[1761871952788,0.87913299,109490.0,109480.0,0.00929]
[1761871952993,0.69646791,109490.0,109480.0,0.09910901]
[1761871953712,0.69646791,109490.0,109480.0,0.09410901]
[1761871954086,0.00066878,109490.0,109480.0,0.09839901]
[1761871954690,0.69713669,109490.0,109480.0,0.09839901]
[1761871955259,0.69713669,109490.0,109480.0,0.09410901]
[1761871955460,0.69713669,109490.0,109480.0,0.08981901]
[1761871955716,0.69713669,109490.0,109480.0,0.09410901]
[1761871955890,0.00066878,109490.0,109480.0,0.09839901]
[1761871956273,0.69713669,109490.0,109480.0,0.09839901]
[1761871956464,0.69713669,109490.0,109480.0,0.09410901]
[1761871956669,0.69713669,109490.0,109480.0,0.09839901]
[1761871956873,0.00066878,109490.0,109480.0,0.09839901]
[1761871958133,0.00066878,109490.0,109480.0,0.09410901]
[1761871958282,0.69713669,109490.0,109480.0,0.09410901]
[1761871958833,0.75123669,109490.0,109480.0,0.08981901]
[1761871959106,0.93390177,109490.0,109480.0,0.08981901]
[1761871959312,0.75123669,109490.0,109480.0,0.08981901]
[1761871960099,0.00066878,109490.0,109480.0,0.09410901]
[1761871960298,0.69713669,109490.0,109480.0,0.09410901]
[1761871961130,0.75123669,109490.0,109480.0,0.08981901]
[1761871961302,3.01816177,109490.0,109480.0,0.08981901]
[1761871961504,2.0,109480.0,109470.0,0.00929]
[1761871961729,0.93324967,109480.0,109470.0,0.09887901]
[1761871962143,0.75056791,109480.0,109470.0,0.09887901]
[1761871962483,0.69646791,109480.0,109470.0,0.09887901]
[1761871963397,0.18266602,109490.0,109470.0,0.14332494]
[1761871963629,0.69646791,109480.0,109470.0,0.26132693]
[1761871963815,10.63651053,109500.0,109480.0,0.07264]
[1761871963952,0.69646791,109490.0,109480.0,0.15405742]
[1761871964160,0.69646791,109490.0,109480.0,0.12048517]
[1761871964351,0.69646791,109490.0,109480.0,0.15680517]
[1761871964581,0.69646791,109490.0,109480.0,0.18881134]
[1761871965038,2.0,109490.0,109480.0,0.27863035]
[1761871965270,2.69646791,109490.0,109480.0,0.23052061]
[1761871965471,2.69646791,109490.0,109480.0,0.22248139]
[1761871965472,0.69646791,109490.0,109480.0,0.22248139]
[1761871965675,10.63651053,109500.0,109480.0,0.25448756]
[1761871965878,10.63651053,109500.0,109490.0,0.12613901]
[1761871966081,12.63651053,109500.0,109490.0,0.16219444]
[1761871966305,12.63651053,109500.0,109490.0,0.10909344]
[1761871966662,12.63651053,109500.0,109490.0,0.14541344]
[1761871966824,12.63651053,109500.0,109490.0,0.16205838]
[1761871967255,12.63651053,109500.0,109490.0,0.14541344]
[1761871967454,12.63740215,109500.0,109490.0,0.14541344]
[1761871967654,9.94093424,109500.0,109490.0,0.14541344]
[1761871967858,9.94093424,109500.0,109490.0,0.1983577]
[1761871968286,10.63740215,109500.0,109490.0,0.18173344]
[1761871968912,9.94093424,109500.0,109490.0,0.18173344]
[1761871969897,9.94093424,109500.0,109490.0,0.19831829]
[1761871970161,9.94093424,109500.0,109490.0,0.18173344]
[1761871970503,9.94093424,109500.0,109490.0,0.19829706]
[1761871970704,9.94093424,109500.0,109490.0,0.22226401]
[1761871971097,9.94093424,109500.0,109490.0,0.2541308]
[1761871971512,9.94093424,109500.0,109490.0,0.22212463]
[1761871971715,9.94093424,109500.0,109490.0,1.32678099]
[1761871971918,9.94093424,109500.0,109490.0,1.30395342]
[1761871972116,9.94093424,109500.0,109490.0,0.65459525]
[1761871972382,9.94093424,109500.0,109490.0,0.19498323]
[1761871972383,9.73716942,109500.0,109490.0,0.19498323]
[1761871972505,10.48720733,109500.0,109490.0,0.10909344]
[1761871972872,10.61628573,109500.0,109490.0,0.12613901]
[1761871973809,0.19181348,109490.0,109460.0,0.00906]
[1761871974011,0.19181348,109490.0,109470.0,0.08981901]
[1761871974012,0.18268326,109480.0,109470.0,0.08981901]
[1761871974366,0.23625326,109480.0,109470.0,0.08981901]
[1761871975029,0.19184661,109470.0,109440.0,0.05459485]
[1761871975251,0.69646791,109460.0,109450.0,0.08981901]
[1761871975660,0.69646791,109460.0,109450.0,0.12613901]
[1761871976166,0.93275305,109460.0,109450.0,0.08981901]
[1761871976371,1.00456452,109470.0,109450.0,0.12613901]
[1761871976573,0.69661227,109460.0,109450.0,0.03632]
[1761871976694,0.00014436,109460.0,109450.0,0.08981901]
[1761871976900,0.00014436,109460.0,109450.0,0.12613901]
[1761871977117,0.00014436,109460.0,109450.0,0.14365141]
[1761871977325,0.00014436,109460.0,109450.0,0.17997141]
[1761871978312,0.00014436,109460.0,109450.0,0.1990122]
[1761871978522,0.00014436,109460.0,109450.0,0.1814998]
[1761871979564,0.00014436,109460.0,109450.0,0.16245901]
[1761871980432,0.05371436,109460.0,109450.0,0.08981901]
[1761871980682,1.27289741,109460.0,109450.0,0.08981901]
[1761871980872,0.18278194,109420.0,109390.0,0.06486687]
[1761871981096,0.19192103,109420.0,109400.0,0.08981901]
[1761871981308,0.22151864,109410.0,109400.0,0.08981901]
[1761871981517,0.27508864,109410.0,109400.0,0.08981901]
[1761871981927,0.27508864,109410.0,109400.0,0.09030061]
[1761871982133,0.88838894,109420.0,109400.0,0.12662061]
[1761871982364,0.18279864,109410.0,109400.0,0.16294061]
[1761871982548,0.18279864,109410.0,109400.0,0.12662061]
[1761871982791,0.87926655,109410.0,109400.0,0.12662061]
[1761871982999,0.69646791,109410.0,109400.0,0.12662061]
[1761871983196,2.0,109420.0,109400.0,0.16294061]
[1761871983409,0.69646791,109420.0,109410.0,0.03632]
[1761871983603,0.87924985,109420.0,109410.0,0.12613901]
[1761871984366,0.87924985,109420.0,109410.0,0.08981901]
[1761871985150,0.18279864,109410.0,109400.0,0.0004816]
[1761871985455,0.68845749,109410.0,109400.0,0.09030061]
[1761871985606,0.45208885,109410.0,109400.0,0.12662061]
[1761871985809,0.63487079,109420.0,109400.0,0.17124389]
[1761871986019,0.45208885,109420.0,109410.0,0.12613901]
[1761871986183,0.64400638,109430.0,109410.0,0.17081378]
[1761871986401,0.45208885,109430.0,109420.0,0.07274]
[1761871986606,0.3081326,109450.0,109420.0,0.16255901]
[1761871986607,0.45208885,109440.0,109420.0,0.16255901]
[1761871986867,2.0,109440.0,109430.0,0.08981901]
[1761871987072,2.0,109440.0,109430.0,0.12618901]
[1761871987475,2.0,109440.0,109430.0,0.08981901]
[1761871987476,2.18274853,109440.0,109430.0,0.08981901]
[1761871987778,0.23631853,109440.0,109430.0,0.08981901]
[1761871988177,0.63483738,109440.0,109430.0,0.12618901]
[1761871988572,0.23083308,109470.0,109430.0,0.19004304]
[1761871988921,0.23083308,109470.0,109460.0,0.02731]
[1761871989204,0.23083308,109470.0,109460.0,0.15349901]
[1761871989205,0.03894297,109470.0,109460.0,0.15349901]
[1761871989431,0.18292142,109470.0,109460.0,0.15349901]
[1761871990061,0.63501027,109470.0,109460.0,0.15349901]
[1761871990266,0.45245621,109470.0,109460.0,0.15349901]
[1761871990874,0.45245621,109470.0,109460.0,0.18221901]
[1761871991080,0.00036736,109470.0,109460.0,0.21969348]
[1761871991291,0.00036736,109470.0,109460.0,0.20975104]
[1761871991720,0.00036736,109470.0,109460.0,0.23355174]
[1761871991922,0.00036736,109470.0,109460.0,0.25722884]
[1761871992131,0.00036736,109470.0,109460.0,0.23342814]
[1761871992515,0.00036736,109470.0,109460.0,0.24953171]
[1761871992885,0.45245621,109470.0,109460.0,0.26595067]
[1761871993083,0.45245621,109470.0,109460.0,0.23723067]
[1761871993279,0.45245621,109470.0,109460.0,0.19747378]
[1761871993681,0.63515466,109470.0,109460.0,0.19747378]
[1761871993901,0.00036736,109470.0,109460.0,0.19747378]
[1761871994090,0.00036736,109470.0,109460.0,0.22619378]
[1761871994290,0.45245621,109470.0,109460.0,0.22619378]
[1761871994876,0.00036736,109470.0,109460.0,0.22619378]
[1761871995271,0.45245621,109470.0,109460.0,0.24995903]
[1761871995496,0.45245621,109470.0,109460.0,0.22621195]
[1761871996259,0.63515466,109470.0,109460.0,0.22621195]
[1761871996698,0.45245621,109470.0,109460.0,0.22621195]
[1761871996915,0.00036736,109470.0,109460.0,0.22621195]
[1761871997136,0.45245621,109470.0,109460.0,0.22621301]
[1761871997388,0.00036736,109470.0,109460.0,0.22621301]
[1761871997645,0.45245621,109470.0,109460.0,0.22621301]
[1761871998326,9.73614536,109500.0,109460.0,0.22621301]
[1761871998534,9.60458614,109500.0,109490.0,4.11075521]
[1761871998743,9.21520943,109500.0,109490.0,4.88021999]
[1761871998951,9.06433017,109500.0,109490.0,4.92289278]
[1761871999166,8.56238661,109500.0,109490.0,4.93543138]
[1761871999370,8.1867901,109500.0,109490.0,4.89893432]
[1761871999582,8.01828054,109500.0,109490.0,4.90093432]
[1761871999816,7.79180873,109500.0,109490.0,4.89993432]
[1761872000046,7.44753394,109500.0,109490.0,4.90093432]
[1761872000483,6.96766035,109500.0,109490.0,4.82107659]
[1761872000684,6.95196035,109500.0,109490.0,4.82107659]
[1761872000889,5.63776035,109500.0,109490.0,4.82107659]
[1761872001098,5.58056035,109500.0,109490.0,4.82107659]
[1761872001335,5.38696035,109500.0,109490.0,4.82107659]
[1761872001561,4.59456035,109500.0,109490.0,4.30055523]
[1761872002032,4.59456035,109500.0,109490.0,3.75015638]
[1761872002279,4.59456035,109500.0,109490.0,4.20424523]
[1761872002535,4.59456035,109500.0,109490.0,4.14056659]
[1761872002978,4.59456035,109500.0,109490.0,4.3266956]
[1761872003765,3.00026035,109500.0,109490.0,2.7322956]
[1761872004136,3.00092903,109500.0,109490.0,2.7322956]
[1761872004338,3.00092903,109500.0,109490.0,2.39980332]
[1761872004723,2.97350774,109500.0,109490.0,2.7322956]
[1761872005346,2.95440774,109500.0,109490.0,2.76086246]
[1761872005555,2.92698645,109500.0,109490.0,2.76086246]
[1761872005761,2.52658645,109500.0,109490.0,2.35546246]
[1761872006688,2.52658645,109500.0,109490.0,2.05915246]
[1761872006912,2.52658645,109500.0,109490.0,1.60706361]
[1761872007129,2.52658645,109500.0,109490.0,2.05915246]
[1761872007356,2.52658645,109500.0,109490.0,2.04226531]
[1761872007848,2.52658645,109500.0,109490.0,2.13957531]
[1761872008108,2.52658645,109500.0,109490.0,2.1078956]
[1761872008389,2.52658645,109500.0,109490.0,2.13955684]
[1761872010249,2.13658645,109500.0,109490.0,2.13955684]
[1761872011434,2.13658645,109500.0,109490.0,2.1078956]
[1761872012643,2.13658645,109500.0,109490.0,2.15546246]
[1761872012862,2.13658645,109500.0,109490.0,2.17384246]
[1761872013067,2.13658645,109500.0,109490.0,2.15546246]
[1761872014268,2.10916692,109500.0,109490.0,2.15546246]
[1761872014442,2.08174739,109500.0,109490.0,2.15546246]
[1761872014836,2.05432671,109500.0,109490.0,2.15546246]
[1761872015074,1.60617355,109500.0,109490.0,2.15446246]
[1761872015313,1.57875287,109500.0,109490.0,2.1078956]
[1761872015469,1.57875287,109500.0,109490.0,2.15348587]
[1761872015671,1.57875287,109500.0,109490.0,2.15548353]
[1761872015926,1.37993977,109500.0,109490.0,2.15548353]
[1761872016155,1.37993977,109500.0,109490.0,2.05917353]
[1761872016376,1.37993977,109500.0,109490.0,1.18331447]
[1761872016626,1.37993977,109500.0,109490.0,1.23095272]